[Event "December 12 Late 2023"]
[Site "https://www.chess.com"]
[Date "2023.12.12"]
[Round "3"]
[White "Xiong, Jeffery"]
[Black "Sai Krishna G V"]
[Result "0-1"]
[Board "37"]
[TimeControl "180+1"]
[WhiteFideId "2047640"]
[BlackFideId "5028280"]
[WhiteElo "3041"]
[BlackElo "2703"]
[WhiteTeam "USA"]
[BlackTeam "IND"]
[WhiteClock "0:01:09"]
[BlackClock "0:00:45"]

1. e4 {[%clk 0:02:54]}  c5 {[%clk 0:02:59]} 2. Nf3 {[%clk 0:02:54]}  d6 {[%clk 0:03:00]} 3. Nc3 {[%clk 0:02:55]}  Nf6 {[%clk 0:02:58]} 4. d4 {[%clk 0:02:55]}  cxd4 {[%clk 0:02:58]} 5. Qxd4 {[%clk 0:02:56]}  Nc6 {[%clk 0:02:55]} 6. Qd3 {[%clk 0:02:56]}  e6 {[%clk 0:02:51]} 7. Bf4 {[%clk 0:02:55]}  Be7 {[%clk 0:02:48]} 8. O-O-O {[%clk 0:02:55]}  e5 {[%clk 0:02:48]} 9. Bg5 {[%clk 0:02:53]}  Be6 {[%clk 0:02:45]} 10. Bxf6 {[%clk 0:02:52]}  Bxf6 {[%clk 0:02:46]} 11. Qxd6 {[%clk 0:02:52]}  Qa5 {[%clk 0:02:37]} 12. Bb5 {[%clk 0:02:50]}  Rc8 {[%clk 0:02:35]} 13. Nxe5 {[%clk 0:02:46]}  Bxe5 {[%clk 0:02:27]} 14. Qxe5 {[%clk 0:02:47]}  O-O {[%clk 0:02:25]} 15. Qd6 {[%clk 0:02:03]}  Rfd8 {[%clk 0:02:05]} 16. Qg3 {[%clk 0:01:53]}  Nd4 {[%clk 0:01:57]} 17. Bf1 {[%clk 0:01:26]}  Bxa2 {[%clk 0:01:44]} 18. Qe3 {[%clk 0:01:25]}  Qb4 {[%clk 0:01:23]} 19. Rxd4 {[%clk 0:01:21]}  Rxd4 {[%clk 0:01:18]} 20. Nxa2 {[%clk 0:01:21]}  Qa4 {[%clk 0:01:02]} 21. Nc3 {[%clk 0:01:09]}  Rxc3 {[%clk 0:00:45]} 0-1

[Event "December 12 Late 2023"]
[Site "https://www.chess.com"]
[Date "2023.12.12"]
[Round "3"]
[White "Crevatin, Leo"]
[Black "Makarian, Rudik"]
[Result "0-1"]
[Board "39"]
[TimeControl "180+1"]
[WhiteFideId "1726307"]
[BlackFideId "44105681"]
[WhiteElo "2628"]
[BlackElo "2925"]
[WhiteTeam "SWE"]
[BlackTeam "FID"]
[WhiteClock "0:00:01"]
[BlackClock "0:00:04"]

1. e4 {[%clk 0:03:00]}  c5 {[%clk 0:03:00]} 2. Nf3 {[%clk 0:02:59]}  d6 {[%clk 0:03:00]} 3. d4 {[%clk 0:02:59]}  cxd4 {[%clk 0:03:01]} 4. Qxd4 {[%clk 0:03:00]}  Nf6 {[%clk 0:03:01]} 5. Nc3 {[%clk 0:03:00]}  Nc6 {[%clk 0:03:01]} 6. Qd3 {[%clk 0:03:00]}  g6 {[%clk 0:02:59]} 7. Nd5 {[%clk 0:02:59]}  Bg7 {[%clk 0:03:00]} 8. c3 {[%clk 0:02:59]}  O-O {[%clk 0:03:00]} 9. Bg5 {[%clk 0:02:59]}  Bg4 {[%clk 0:02:45]} 10. Bxf6 {[%clk 0:02:47]}  Bxf6 {[%clk 0:02:46]} 11. Nxf6+ {[%clk 0:02:47]}  exf6 {[%clk 0:02:47]} 12. Be2 {[%clk 0:02:45]}  Qb6 {[%clk 0:02:21]} 13. O-O {[%clk 0:02:44]}  Bxf3 {[%clk 0:02:20]} 14. Bxf3 {[%clk 0:02:43]}  Ne5 {[%clk 0:02:20]} 15. Qe2 {[%clk 0:02:35]}  Rfe8 {[%clk 0:02:17]} 16. Rfd1 {[%clk 0:02:31]}  Kg7 {[%clk 0:02:13]} 17. b3 {[%clk 0:02:02]}  Re6 {[%clk 0:02:05]} 18. g3 {[%clk 0:01:56]}  Nxf3+ {[%clk 0:02:05]} 19. Qxf3 {[%clk 0:01:56]}  Qc6 {[%clk 0:02:03]} 20. Rd5 {[%clk 0:01:47]}  Rae8 {[%clk 0:02:03]} 21. Rad1 {[%clk 0:01:32]}  h5 {[%clk 0:01:35]} 22. h4 {[%clk 0:01:19]}  b6 {[%clk 0:01:29]} 23. c4 {[%clk 0:01:11]}  Rxe4 {[%clk 0:01:18]} 24. Rxd6 {[%clk 0:01:10]}  Re1+ {[%clk 0:01:17]} 25. Kg2 {[%clk 0:01:10]}  Rg1+ {[%clk 0:01:17]} 26. Rxg1 {[%clk 0:01:07]}  Qxd6 {[%clk 0:01:17]} 27. Rd1 {[%clk 0:01:06]}  Qe6 {[%clk 0:01:08]} 28. Rd5 {[%clk 0:00:58]}  Re7 {[%clk 0:01:01]} 29. a4 {[%clk 0:00:52]}  Qe1 {[%clk 0:00:55]} 30. Rd6 {[%clk 0:00:46]}  Qa1 {[%clk 0:00:54]} 31. Rd8 {[%clk 0:00:31]}  f5 {[%clk 0:00:45]} 32. Qd3 {[%clk 0:00:17]}  Re1 {[%clk 0:00:31]} 33. Qd4+ {[%clk 0:00:14]}  Qxd4 {[%clk 0:00:31]} 34. Rxd4 {[%clk 0:00:15]}  Rb1 {[%clk 0:00:32]} 35. Rd3 {[%clk 0:00:14]}  Kf6 {[%clk 0:00:26]} 36. f4 {[%clk 0:00:12]}  Ke6 {[%clk 0:00:25]} 37. Kf2 {[%clk 0:00:09]}  Rb2+ {[%clk 0:00:25]} 38. Ke3 {[%clk 0:00:09]}  Ra2 {[%clk 0:00:19]} 39. Kd4 {[%clk 0:00:09]}  Kd6 {[%clk 0:00:12]} 40. Kc3+ {[%clk 0:00:09]}  Kc6 {[%clk 0:00:12]} 41. Re3 {[%clk 0:00:08]}  a5 {[%clk 0:00:06]} 42. Kd4 {[%clk 0:00:08]}  Kd6 {[%clk 0:00:04]} 43. Kc3 {[%clk 0:00:04]}  Kc6 {[%clk 0:00:02]} 44. Rd3 {[%clk 0:00:03]}  Rg2 {[%clk 0:00:02]} 45. b4 {[%clk 0:00:03]}  Ra2 {[%clk 0:00:02]} 46. Kb3 {[%clk 0:00:03]}  Ra1 {[%clk 0:00:02]} 47. b5+ {[%clk 0:00:03]}  Kc7 {[%clk 0:00:03]} 48. Re3 {[%clk 0:00:02]}  Rb1+ {[%clk 0:00:03]} 49. Kc3 {[%clk 0:00:03]}  Kd6 {[%clk 0:00:04]} 50. Rd3+ {[%clk 0:00:02]}  Kc7 {[%clk 0:00:04]} 51. Re3 {[%clk 0:00:02]}  Rc1+ {[%clk 0:00:04]} 52. Kd4 {[%clk 0:00:02]}  Kd6 {[%clk 0:00:04]} 53. Rd3 {[%clk 0:00:03]}  Ra1 {[%clk 0:00:04]} 54. c5+ {[%clk 0:00:03]}  Kc7 {[%clk 0:00:03]} 55. Kc4 {[%clk 0:00:03]}  Rxa4+ {[%clk 0:00:04]} 56. Kd5 {[%clk 0:00:04]}  Rb4 {[%clk 0:00:04]} 57. cxb6+ {[%clk 0:00:01]}  Kxb6 {[%clk 0:00:05]} 58. Kd6 {[%clk 0:00:02]}  a4 {[%clk 0:00:05]} 59. Ke7 {[%clk 0:00:02]}  Rb3 {[%clk 0:00:04]} 60. Rd8 {[%clk 0:00:02]}  Rxg3 {[%clk 0:00:04]} 61. Rb8+ {[%clk 0:00:02]}  Ka7 {[%clk 0:00:03]} 62. Rd8 {[%clk 0:00:02]}  a3 {[%clk 0:00:03]} 63. Rd4 {[%clk 0:00:01]}  Kb6 {[%clk 0:00:03]} 64. Ra4 {[%clk 0:00:01]}  Kxb5 {[%clk 0:00:03]} 65. Ra8 {[%clk 0:00:02]}  Kb4 {[%clk 0:00:03]} 66. Kxf7 {[%clk 0:00:01]}  Kb3 {[%clk 0:00:04]} 0-1

[Event "December 12 Late 2023"]
[Site "https://www.chess.com"]
[Date "2023.12.12"]
[Round "3"]
[White "Demchenko, Anton"]
[Black "Rodgers, Jack"]
[Result "1/2-1/2"]
[Board "41"]
[TimeControl "180+1"]
[WhiteFideId "4160258"]
[BlackFideId "3220885"]
[WhiteElo "2884"]
[BlackElo "2528"]
[WhiteTeam "SLO"]
[BlackTeam "AUS"]
[WhiteClock "0:00:28"]
[BlackClock "0:00:07"]

1. e4 {[%clk 0:03:00]}  c5 {[%clk 0:02:59]} 2. Nf3 {[%clk 0:03:00]}  g6 {[%clk 0:03:00]} 3. Bc4 {[%clk 0:02:59]}  Bg7 {[%clk 0:02:59]} 4. c3 {[%clk 0:03:00]}  e6 {[%clk 0:02:59]} 5. d4 {[%clk 0:02:59]}  cxd4 {[%clk 0:02:59]} 6. Nxd4 {[%clk 0:03:00]}  d5 {[%clk 0:02:52]} 7. exd5 {[%clk 0:02:59]}  exd5 {[%clk 0:02:53]} 8. Bb5+ {[%clk 0:02:58]}  Bd7 {[%clk 0:02:53]} 9. O-O {[%clk 0:02:58]}  Ne7 {[%clk 0:02:50]} 10. Bg5 {[%clk 0:02:58]}  O-O {[%clk 0:02:39]} 11. Re1 {[%clk 0:02:56]}  Re8 {[%clk 0:02:38]} 12. Na3 {[%clk 0:02:49]}  h6 {[%clk 0:02:31]} 13. Bh4 {[%clk 0:02:42]}  a6 {[%clk 0:02:30]} 14. Bf1 {[%clk 0:02:36]}  g5 {[%clk 0:02:25]} 15. Bg3 {[%clk 0:02:36]}  Nbc6 {[%clk 0:02:23]} 16. Nac2 {[%clk 0:02:35]}  Nf5 {[%clk 0:02:06]} 17. Rxe8+ {[%clk 0:02:27]}  Qxe8 {[%clk 0:02:06]} 18. Nxf5 {[%clk 0:02:18]}  Bxf5 {[%clk 0:02:07]} 19. Ne3 {[%clk 0:01:56]}  Be6 {[%clk 0:01:58]} 20. Nxd5 {[%clk 0:01:56]}  Rd8 {[%clk 0:01:40]} 21. c4 {[%clk 0:01:56]}  Nb4 {[%clk 0:01:20]} 22. h4 {[%clk 0:01:18]}  Nxd5 {[%clk 0:01:15]} 23. cxd5 {[%clk 0:01:19]}  Bxd5 {[%clk 0:01:09]} 24. Qh5 {[%clk 0:01:13]}  f5 {[%clk 0:01:01]} 25. Qxe8+ {[%clk 0:01:01]}  Rxe8 {[%clk 0:01:02]} 26. hxg5 {[%clk 0:00:57]}  hxg5 {[%clk 0:01:03]} 27. Bd6 {[%clk 0:00:51]}  Bxb2 {[%clk 0:00:56]} 28. Rb1 {[%clk 0:00:52]}  Be5 {[%clk 0:00:53]} 29. Bxe5 {[%clk 0:00:45]}  Rxe5 {[%clk 0:00:53]} 30. a3 {[%clk 0:00:46]}  b5 {[%clk 0:00:50]} 31. Rc1 {[%clk 0:00:46]}  Kf7 {[%clk 0:00:37]} 32. Rc7+ {[%clk 0:00:44]}  Kf6 {[%clk 0:00:36]} 33. Ra7 {[%clk 0:00:44]}  Re6 {[%clk 0:00:33]} 34. f3 {[%clk 0:00:44]}  Rc6 {[%clk 0:00:29]} 35. Kf2 {[%clk 0:00:40]}  Bc4 {[%clk 0:00:27]} 36. Be2 {[%clk 0:00:34]}  Bxe2 {[%clk 0:00:26]} 37. Kxe2 {[%clk 0:00:35]}  Ke5 {[%clk 0:00:23]} 38. g3 {[%clk 0:00:33]}  f4 {[%clk 0:00:12]} 39. gxf4+ {[%clk 0:00:28]}  gxf4 {[%clk 0:00:12]} 40. Kd3 {[%clk 0:00:27]}  Rd6+ {[%clk 0:00:11]} 41. Kc3 {[%clk 0:00:27]}  Rc6+ {[%clk 0:00:09]} 42. Kd3 {[%clk 0:00:27]}  Rd6+ {[%clk 0:00:07]} 43. Kc3 {[%clk 0:00:28]}  Rc6+ {[%clk 0:00:07]} 44. Kd3 {[%clk 0:00:28]} 1/2-1/2

[Event "December 12 Late 2023"]
[Site "https://www.chess.com"]
[Date "2023.12.12"]
[Round "3"]
[White "Haydon, David L"]
[Black "Federzoni, Enzo"]
[Result "1-0"]
[Board "43"]
[TimeControl "180+1"]
[WhiteFideId "415405"]
[BlackFideId "2173301"]
[WhiteElo "2750"]
[BlackElo "2453"]
[WhiteTeam "ENG"]
[BlackTeam "BRA"]
[WhiteClock "0:02:13"]
[BlackClock "0:02:10"]

1. d4 {[%clk 0:03:00]}  d5 {[%clk 0:02:56]} 2. Nf3 {[%clk 0:03:00]}  e6 {[%clk 0:02:57]} 3. c4 {[%clk 0:03:00]}  Nf6 {[%clk 0:02:57]} 4. Nc3 {[%clk 0:03:00]}  Be7 {[%clk 0:02:56]} 5. cxd5 {[%clk 0:03:01]}  exd5 {[%clk 0:02:56]} 6. Bf4 {[%clk 0:03:00]}  O-O {[%clk 0:02:56]} 7. Qc2 {[%clk 0:03:00]}  c6 {[%clk 0:02:52]} 8. e3 {[%clk 0:02:59]}  Re8 {[%clk 0:02:52]} 9. Bd3 {[%clk 0:02:59]}  Nbd7 {[%clk 0:02:47]} 10. O-O {[%clk 0:02:57]}  Nf8 {[%clk 0:02:47]} 11. h3 {[%clk 0:02:56]}  Bd6 {[%clk 0:02:39]} 12. Be5 {[%clk 0:02:50]}  Ng6 {[%clk 0:02:37]} 13. Bxd6 {[%clk 0:02:31]}  Qxd6 {[%clk 0:02:35]} 14. Rab1 {[%clk 0:02:21]}  a5 {[%clk 0:02:35]} 15. a3 {[%clk 0:02:20]}  Ne7 {[%clk 0:02:35]} 16. b4 {[%clk 0:02:20]}  axb4 {[%clk 0:02:36]} 17. axb4 {[%clk 0:02:20]}  g6 {[%clk 0:02:36]} 18. b5 {[%clk 0:02:20]}  Bf5 {[%clk 0:02:36]} 19. Bxf5 {[%clk 0:02:16]}  Nxf5 {[%clk 0:02:36]} 20. bxc6 {[%clk 0:02:16]}  Qxc6 {[%clk 0:02:33]} 21. Ne5 {[%clk 0:02:14]}  Qc7 {[%clk 0:02:10]} 22. Qb3 {[%clk 0:02:13]} 1-0

[Event "December 12 Late 2023"]
[Site "https://www.chess.com"]
[Date "2023.12.12"]
[Round "3"]
[White "Bardyk, Artem"]
[Black "Mesquita, Eduardo Barbosa"]
[Result "0-1"]
[Board "44"]
[TimeControl "180+1"]
[WhiteFideId "34349979"]
[BlackFideId "22757163"]
[WhiteElo "2746"]
[BlackElo "2393"]
[WhiteTeam "RUS"]
[BlackTeam "BRA"]
[WhiteClock "0:00:05"]
[BlackClock "0:00:37"]

1. e4 {[%clk 0:02:58]}  c5 {[%clk 0:03:00]} 2. c3 {[%clk 0:02:56]}  Nf6 {[%clk 0:02:59]} 3. e5 {[%clk 0:02:55]}  Nd5 {[%clk 0:02:59]} 4. Nf3 {[%clk 0:02:51]}  e6 {[%clk 0:02:58]} 5. Bc4 {[%clk 0:02:52]}  d6 {[%clk 0:02:58]} 6. d4 {[%clk 0:02:52]}  cxd4 {[%clk 0:02:58]} 7. cxd4 {[%clk 0:02:53]}  Be7 {[%clk 0:02:58]} 8. O-O {[%clk 0:02:53]}  O-O {[%clk 0:02:55]} 9. Bd2 {[%clk 0:02:53]}  Nc6 {[%clk 0:02:53]} 10. Nc3 {[%clk 0:02:53]}  Nb6 {[%clk 0:02:51]} 11. Bb3 {[%clk 0:02:52]}  Re8 {[%clk 0:02:49]} 12. Qe2 {[%clk 0:02:50]}  Na5 {[%clk 0:02:43]} 13. Bc2 {[%clk 0:02:48]}  Nac4 {[%clk 0:02:43]} 14. Rfe1 {[%clk 0:02:42]}  Nxb2 {[%clk 0:02:35]} 15. exd6 {[%clk 0:02:41]}  Bxd6 {[%clk 0:02:33]} 16. Ng5 {[%clk 0:02:39]}  g6 {[%clk 0:02:22]} 17. Nxh7 {[%clk 0:02:20]}  Qh4 {[%clk 0:02:18]} 18. g3 {[%clk 0:02:07]}  Qxh7 {[%clk 0:02:15]} 19. Ne4 {[%clk 0:02:08]}  Be7 {[%clk 0:02:14]} 20. Bb4 {[%clk 0:02:08]}  f5 {[%clk 0:02:02]} 21. Bxe7 {[%clk 0:02:00]}  Qxe7 {[%clk 0:02:01]} 22. Nc5 {[%clk 0:01:57]}  N2c4 {[%clk 0:01:55]} 23. Bb3 {[%clk 0:01:56]}  Na5 {[%clk 0:01:48]} 24. Qb5 {[%clk 0:01:43]}  Nxb3 {[%clk 0:01:43]} 25. Qxb3 {[%clk 0:01:44]}  Nd5 {[%clk 0:01:41]} 26. Re5 {[%clk 0:01:39]}  b6 {[%clk 0:01:37]} 27. Nd3 {[%clk 0:01:24]}  Nf6 {[%clk 0:01:33]} 28. Nf4 {[%clk 0:01:21]}  Ng4 {[%clk 0:01:17]} 29. Re2 {[%clk 0:01:11]}  g5 {[%clk 0:01:01]} 30. Nd5 {[%clk 0:01:06]}  Qh7 {[%clk 0:00:55]} 31. h4 {[%clk 0:00:59]}  Ba6 {[%clk 0:00:53]} 32. Rxe6 {[%clk 0:00:38]}  Rxe6 {[%clk 0:00:48]} 33. Rc1 {[%clk 0:00:12]}  Qf7 {[%clk 0:00:39]} 34. Rc7 {[%clk 0:00:07]}  Re1+ {[%clk 0:00:38]} 35. Kg2 {[%clk 0:00:06]}  Bf1+ {[%clk 0:00:37]} 36. Kf3 {[%clk 0:00:05]}  Nh2# {[%clk 0:00:37]} 0-1

[Event "December 12 Late 2023"]
[Site "https://www.chess.com"]
[Date "2023.12.12"]
[Round "3"]
[White "Onyshchuk, Volodymyr"]
[Black "Bhandari, Krish"]
[Result "1-0"]
[Board "46"]
[TimeControl "180+1"]
[WhiteFideId "14114038"]
[BlackFideId "30955106"]
[WhiteElo "2710"]
[BlackElo "2121"]
[WhiteTeam "UKR"]
[BlackTeam "USA"]
[WhiteClock "0:00:25"]
[BlackClock "0:00:06"]

1. e4 {[%clk 0:03:00]}  e5 {[%clk 0:02:55]} 2. Nf3 {[%clk 0:03:01]}  Nc6 {[%clk 0:02:54]} 3. Bc4 {[%clk 0:03:01]}  Nf6 {[%clk 0:02:52]} 4. d3 {[%clk 0:03:01]}  Be7 {[%clk 0:02:51]} 5. O-O {[%clk 0:03:01]}  O-O {[%clk 0:02:50]} 6. Re1 {[%clk 0:03:00]}  d6 {[%clk 0:02:50]} 7. c3 {[%clk 0:02:59]}  Na5 {[%clk 0:02:50]} 8. Bb5 {[%clk 0:02:59]}  a6 {[%clk 0:02:48]} 9. Ba4 {[%clk 0:02:59]}  b5 {[%clk 0:02:49]} 10. Bc2 {[%clk 0:02:59]}  c5 {[%clk 0:02:50]} 11. Nbd2 {[%clk 0:03:00]}  Re8 {[%clk 0:02:45]} 12. Nf1 {[%clk 0:03:00]}  h6 {[%clk 0:02:44]} 13. Ng3 {[%clk 0:03:00]}  Bf8 {[%clk 0:02:44]} 14. h3 {[%clk 0:02:59]}  g6 {[%clk 0:02:38]} 15. Be3 {[%clk 0:02:58]}  Bg7 {[%clk 0:02:37]} 16. Qd2 {[%clk 0:02:57]}  Kh7 {[%clk 0:02:36]} 17. Rad1 {[%clk 0:02:57]}  Qc7 {[%clk 0:02:33]} 18. b3 {[%clk 0:02:51]}  Bb7 {[%clk 0:02:02]} 19. d4 {[%clk 0:02:25]}  exd4 {[%clk 0:01:44]} 20. cxd4 {[%clk 0:02:25]}  Nxe4 {[%clk 0:01:41]} 21. Bxe4 {[%clk 0:02:25]}  Bxe4 {[%clk 0:01:41]} 22. dxc5 {[%clk 0:02:24]}  dxc5 {[%clk 0:01:10]} 23. Bf4 {[%clk 0:02:24]}  Qc6 {[%clk 0:01:07]} 24. Qxa5 {[%clk 0:02:20]}  Bxf3 {[%clk 0:01:07]} 25. gxf3 {[%clk 0:02:17]}  Qxf3 {[%clk 0:01:04]} 26. Rxe8 {[%clk 0:01:58]}  Rxe8 {[%clk 0:00:59]} 27. Qd2 {[%clk 0:01:58]}  Bc3 {[%clk 0:00:50]} 28. Qd7 {[%clk 0:01:37]}  Rf8 {[%clk 0:00:34]} 29. Qd3 {[%clk 0:01:27]}  Qxf4 {[%clk 0:00:29]} 30. Qxc3 {[%clk 0:01:27]}  c4 {[%clk 0:00:26]} 31. bxc4 {[%clk 0:01:19]}  bxc4 {[%clk 0:00:25]} 32. Rd4 {[%clk 0:01:18]}  Qe5 {[%clk 0:00:25]} 33. Rxc4 {[%clk 0:01:17]}  Qe6 {[%clk 0:00:23]} 34. Ne4 {[%clk 0:01:15]}  Rd8 {[%clk 0:00:16]} 35. Nf6+ {[%clk 0:01:12]}  Kg7 {[%clk 0:00:16]} 36. Nh5+ {[%clk 0:00:56]}  Kf8 {[%clk 0:00:15]} 37. Qh8+ {[%clk 0:00:41]}  Ke7 {[%clk 0:00:14]} 38. Rc7+ {[%clk 0:00:42]}  Rd7 {[%clk 0:00:08]} 39. Rxd7+ {[%clk 0:00:41]}  Kxd7 {[%clk 0:00:05]} 40. Qd4+ {[%clk 0:00:36]}  Ke7 {[%clk 0:00:05]} 41. Qb4+ {[%clk 0:00:31]}  Kd7 {[%clk 0:00:05]} 42. Qa4+ {[%clk 0:00:31]}  Kc7 {[%clk 0:00:05]} 43. Nf4 {[%clk 0:00:30]}  Qe1+ {[%clk 0:00:05]} 44. Kg2 {[%clk 0:00:30]}  a5 {[%clk 0:00:06]} 45. Qc4+ {[%clk 0:00:28]}  Kb7 {[%clk 0:00:06]} 46. Qxf7+ {[%clk 0:00:28]}  Ka6 {[%clk 0:00:06]} 47. Qxg6+ {[%clk 0:00:28]}  Kb5 {[%clk 0:00:07]} 48. Qf5+ {[%clk 0:00:25]}  Ka4 {[%clk 0:00:06]} 49. Qc2+ {[%clk 0:00:25]}  Ka3 {[%clk 0:00:06]} 50. Qb3# {[%clk 0:00:25]} 1-0

[Event "December 12 Late 2023"]
[Site "https://www.chess.com"]
[Date "2023.12.12"]
[Round "3"]
[White "Jimenez Almeida, Luis David"]
[Black "Rodrigue-Lemieux, Shawn"]
[Result "0-1"]
[Board "50"]
[TimeControl "180+1"]
[WhiteFideId "22242244"]
[BlackFideId "2620049"]
[WhiteElo "2513"]
[BlackElo "2882"]
[WhiteTeam "ESP"]
[BlackTeam "CAN"]
[WhiteClock "0:00:11"]
[BlackClock "0:00:39"]

1. e4 {[%clk 0:03:00]}  g6 {[%clk 0:02:59]} 2. h4 {[%clk 0:02:59]}  Bg7 {[%clk 0:03:00]} 3. h5 {[%clk 0:03:00]}  d5 {[%clk 0:02:59]} 4. exd5 {[%clk 0:02:57]}  Qxd5 {[%clk 0:02:59]} 5. Nc3 {[%clk 0:02:57]}  Qa5 {[%clk 0:02:58]} 6. d4 {[%clk 0:02:48]}  Nc6 {[%clk 0:02:57]} 7. Be3 {[%clk 0:02:48]}  Bf5 {[%clk 0:02:54]} 8. h6 {[%clk 0:02:47]}  Bf6 {[%clk 0:02:50]} 9. Bb5 {[%clk 0:02:43]}  O-O-O {[%clk 0:02:46]} 10. Bxc6 {[%clk 0:02:37]}  bxc6 {[%clk 0:02:47]} 11. Qf3 {[%clk 0:02:36]}  Kb7 {[%clk 0:02:17]} 12. Ne2 {[%clk 0:02:31]}  e5 {[%clk 0:02:11]} 13. b4 {[%clk 0:02:19]}  Qa3 {[%clk 0:02:04]} 14. Bc1 {[%clk 0:02:13]}  Qa6 {[%clk 0:02:00]} 15. b5 {[%clk 0:02:00]}  Qa5 {[%clk 0:01:50]} 16. Qxc6+ {[%clk 0:01:52]}  Kb8 {[%clk 0:01:48]} 17. Bd2 {[%clk 0:01:43]}  Qb6 {[%clk 0:01:40]} 18. Qc4 {[%clk 0:01:17]}  exd4 {[%clk 0:01:28]} 19. Na4 {[%clk 0:01:06]}  Qe6 {[%clk 0:01:23]} 20. Qc5 {[%clk 0:00:49]}  d3 {[%clk 0:01:18]} 21. Be3 {[%clk 0:00:40]}  d2+ {[%clk 0:01:00]} 22. Kd1 {[%clk 0:00:33]}  Qe4 {[%clk 0:00:52]} 23. f3 {[%clk 0:00:19]}  Qxa4 {[%clk 0:00:51]} 24. Bf4 {[%clk 0:00:13]}  Qxc2+ {[%clk 0:00:39]} 25. Qxc2 {[%clk 0:00:14]}  Bxc2+ {[%clk 0:00:40]} 26. Kxc2 {[%clk 0:00:15]}  Bxa1 {[%clk 0:00:40]} 27. Rxa1 {[%clk 0:00:15]}  Ne7 {[%clk 0:00:40]} 28. Bxd2 {[%clk 0:00:13]}  Nd5 {[%clk 0:00:36]} 29. Bg5 {[%clk 0:00:13]}  f6 {[%clk 0:00:36]} 30. Bd2 {[%clk 0:00:13]}  Rhe8 {[%clk 0:00:36]} 31. Nd4 {[%clk 0:00:12]}  Nb4+ {[%clk 0:00:37]} 32. Kc3 {[%clk 0:00:12]}  Rxd4 {[%clk 0:00:38]} 33. Kxd4 {[%clk 0:00:11]}  Nc2+ {[%clk 0:00:39]} 0-1

[Event "December 12 Late 2023"]
[Site "https://www.chess.com"]
[Date "2023.12.12"]
[Round "3"]
[White "Ismayil, Malak"]
[Black "Maksimovic, Bojan"]
[Result "1-0"]
[Board "52"]
[TimeControl "180+1"]
[WhiteFideId "13412604"]
[BlackFideId "14408120"]
[WhiteElo "2508"]
[BlackElo "2862"]
[WhiteTeam "AZE"]
[BlackTeam "BIH"]
[WhiteClock "0:00:01"]
[BlackClock "0:00:00"]

1. e4 {[%clk 0:03:00]}  c5 {[%clk 0:03:00]} 2. Nf3 {[%clk 0:03:00]}  e6 {[%clk 0:03:00]} 3. c3 {[%clk 0:02:54]}  d5 {[%clk 0:03:00]} 4. exd5 {[%clk 0:02:50]}  Qxd5 {[%clk 0:03:01]} 5. d4 {[%clk 0:02:48]}  Nf6 {[%clk 0:03:02]} 6. Be3 {[%clk 0:02:46]}  cxd4 {[%clk 0:03:00]} 7. Nxd4 {[%clk 0:02:44]}  Nc6 {[%clk 0:02:55]} 8. Nd2 {[%clk 0:02:40]}  Nxd4 {[%clk 0:02:52]} 9. Bxd4 {[%clk 0:02:41]}  Bc5 {[%clk 0:02:52]} 10. Nf3 {[%clk 0:02:27]}  Bxd4 {[%clk 0:02:51]} 11. Qxd4 {[%clk 0:02:28]}  Qxd4 {[%clk 0:02:42]} 12. Nxd4 {[%clk 0:02:29]}  Bd7 {[%clk 0:02:42]} 13. Be2 {[%clk 0:02:26]}  Ke7 {[%clk 0:02:35]} 14. Bf3 {[%clk 0:02:26]}  Rab8 {[%clk 0:02:25]} 15. O-O-O {[%clk 0:02:25]}  Rhc8 {[%clk 0:02:24]} 16. Rhe1 {[%clk 0:02:25]}  Kf8 {[%clk 0:02:25]} 17. g4 {[%clk 0:02:13]}  b5 {[%clk 0:01:59]} 18. g5 {[%clk 0:02:11]}  Ne8 {[%clk 0:02:00]} 19. Nb3 {[%clk 0:02:06]}  Bc6 {[%clk 0:01:40]} 20. Bxc6 {[%clk 0:02:05]}  Rxc6 {[%clk 0:01:41]} 21. Rd7 {[%clk 0:01:58]}  b4 {[%clk 0:01:33]} 22. Re3 {[%clk 0:01:58]}  bxc3 {[%clk 0:01:25]} 23. Rxc3 {[%clk 0:01:59]}  Rxc3+ {[%clk 0:01:22]} 24. bxc3 {[%clk 0:02:00]}  Rc8 {[%clk 0:01:20]} 25. Kb2 {[%clk 0:01:47]}  Rc7 {[%clk 0:01:20]} 26. Rxc7 {[%clk 0:01:33]}  Nxc7 {[%clk 0:01:21]} 27. Nd4 {[%clk 0:01:33]}  Ke8 {[%clk 0:01:16]} 28. c4 {[%clk 0:01:32]}  a6 {[%clk 0:01:05]} 29. Kc3 {[%clk 0:01:30]}  Kd7 {[%clk 0:01:03]} 30. Kb4 {[%clk 0:01:30]}  e5 {[%clk 0:01:04]} 31. Nf5 {[%clk 0:01:28]}  Ne6 {[%clk 0:01:03]} 32. h4 {[%clk 0:01:22]}  f6 {[%clk 0:00:47]} 33. gxf6 {[%clk 0:01:18]}  gxf6 {[%clk 0:00:48]} 34. Ka5 {[%clk 0:01:16]}  Kc6 {[%clk 0:00:32]} 35. Kxa6 {[%clk 0:01:15]}  Nc5+ {[%clk 0:00:29]} 36. Ka5 {[%clk 0:01:13]}  Ne4 {[%clk 0:00:29]} 37. f3 {[%clk 0:00:39]}  Nd2 {[%clk 0:00:29]} 38. Kb4 {[%clk 0:00:39]}  Nxf3 {[%clk 0:00:30]} 39. a4 {[%clk 0:00:39]}  e4 {[%clk 0:00:30]} 40. a5 {[%clk 0:00:29]}  Ne5 {[%clk 0:00:30]} 41. Nd4+ {[%clk 0:00:26]}  Kb7 {[%clk 0:00:30]} 42. Kb5 {[%clk 0:00:23]}  e3 {[%clk 0:00:27]} 43. c5 {[%clk 0:00:19]}  f5 {[%clk 0:00:23]} 44. a6+ {[%clk 0:00:08]}  Kc7 {[%clk 0:00:13]} 45. Ne6+ {[%clk 0:00:06]}  Kd7 {[%clk 0:00:10]} 46. Nf4 {[%clk 0:00:06]}  Kc8 {[%clk 0:00:04]} 47. Kb6 {[%clk 0:00:03]}  Nc4+ {[%clk 0:00:04]} 48. Kc6 {[%clk 0:00:02]}  Ne5+ {[%clk 0:00:01]} 49. Kd5 {[%clk 0:00:02]}  Nf3 {[%clk 0:00:02]} 50. Kc6 {[%clk 0:00:01]}  Ne5+ {[%clk 0:00:01]} 51. Kd6 {[%clk 0:00:01]}  Ng6 {[%clk 0:00:01]} 52. Ne2 {[%clk 0:00:01]}  f4 {[%clk 0:00:00]} 53. c6 {[%clk 0:00:01]} 1-0

[Event "December 12 Late 2023"]
[Site "https://www.chess.com"]
[Date "2023.12.12"]
[Round "3"]
[White "Holt, Conrad"]
[Black "Shton, Roman"]
[Result "1-0"]
[Board "56"]
[TimeControl "180+1"]
[WhiteFideId "2034387"]
[BlackFideId "14137461"]
[WhiteElo "2799"]
[BlackElo "2502"]
[WhiteTeam "USA"]
[BlackTeam "UKR"]
[WhiteClock "0:01:06"]
[BlackClock "0:01:20"]

1. d4 {[%clk 0:03:00]}  Nf6 {[%clk 0:02:59]} 2. c4 {[%clk 0:03:01]}  e6 {[%clk 0:03:00]} 3. Nc3 {[%clk 0:03:02]}  Bb4 {[%clk 0:03:00]} 4. Qc2 {[%clk 0:03:02]}  O-O {[%clk 0:02:59]} 5. e4 {[%clk 0:03:01]}  d6 {[%clk 0:02:59]} 6. a3 {[%clk 0:03:01]}  Bxc3+ {[%clk 0:02:57]} 7. bxc3 {[%clk 0:03:02]}  c5 {[%clk 0:02:51]} 8. e5 {[%clk 0:03:01]}  dxe5 {[%clk 0:02:49]} 9. dxe5 {[%clk 0:03:02]}  Ng4 {[%clk 0:02:50]} 10. Nf3 {[%clk 0:02:58]}  Nc6 {[%clk 0:02:49]} 11. Bf4 {[%clk 0:02:55]}  f5 {[%clk 0:02:44]} 12. Rd1 {[%clk 0:02:12]}  Qc7 {[%clk 0:02:34]} 13. Qc1 {[%clk 0:02:07]}  Qa5 {[%clk 0:02:05]} 14. Be2 {[%clk 0:02:05]}  a6 {[%clk 0:01:50]} 15. O-O {[%clk 0:02:03]}  b5 {[%clk 0:01:50]} 16. h3 {[%clk 0:02:00]}  Nh6 {[%clk 0:01:49]} 17. Bxh6 {[%clk 0:02:00]}  gxh6 {[%clk 0:01:50]} 18. Qxh6 {[%clk 0:01:40]}  Qc7 {[%clk 0:01:43]} 19. cxb5 {[%clk 0:01:31]}  axb5 {[%clk 0:01:43]} 20. Bxb5 {[%clk 0:01:32]}  Nxe5 {[%clk 0:01:42]} 21. Nxe5 {[%clk 0:01:23]}  Qxe5 {[%clk 0:01:43]} 22. Rd3 {[%clk 0:01:20]}  f4 {[%clk 0:01:35]} 23. Rfd1 {[%clk 0:01:18]}  Ba6 {[%clk 0:01:18]} 24. Bxa6 {[%clk 0:01:06]}  Rxa6 {[%clk 0:01:19]} 25. Rd8 {[%clk 0:01:06]}  Ra8 {[%clk 0:01:20]} 26. Qxf8# {[%clk 0:01:06]} 1-0